bitfinex/quotes_ETHUSD_20250426
["timestamp","ask_amount","ask_price","bid_price","bid_amount"]
[1745681314200,1e-08,1804.9,1804.8,11.44715496]
[1745681320910,1e-08,1804.9,1804.8,8.44715496]
[1745681322201,1e-08,1804.9,1804.8,5.54078014]
[1745681326287,0.8205,1804.8,1804.7,5.5409159]
[1745681329404,0.8205,1804.8,1804.6,5.54121391]
[1745681329612,0.8205,1804.8,1804.7,5.54108716]
[1745681330189,0.8205,1804.8,1804.6,5.54121391]
[1745681330395,0.8205,1804.8,1804.6,5.54138628]
[1745681330705,0.8205,1804.8,1804.5,5.54152692]
[1745681331413,0.8205,1804.8,1804.5,5.54146133]
[1745681331581,0.8205,1804.8,1804.6,5.54108967]
[1745681331784,0.8205,1804.8,1804.7,5.54108716]
[1745681333712,0.79280001,1804.9,1804.8,5.54078014]
[1745681336716,1e-08,1804.9,1804.8,6.32488014]
[1745681337310,1e-08,1804.9,1804.8,6.74153525]
[1745681337519,1e-08,1804.9,1804.8,7.96979749]
[1745681337703,1e-08,1804.9,1804.8,14.09979747]
[1745681338311,1e-08,1804.9,1804.8,13.68314236]
[1745681338512,1e-08,1804.9,1804.8,11.67078012]
[1745681343532,1e-08,1804.9,1804.8,5.54078014]
[1745681349515,1e-08,1804.9,1804.8,6.35868014]
[1745681350016,1e-08,1804.9,1804.8,6.41408207]
[1745681350336,1e-08,1804.9,1804.8,5.59618207]
[1745681350946,1e-08,1804.9,1804.8,5.54078014]
[1745681359412,1e-08,1804.9,1804.6,5.5412487]
[1745681359744,0.7854,1804.8,1804.6,5.5412487]
[1745681361866,0.7854,1804.8,1804.2,5.54240023]
[1745681361867,0.7854,1804.7,1804.2,5.54240023]
[1745681362073,5.51750403,1804.8,1804.4,5.54170907]
[1745681362074,0.7854,1804.6,1804.4,5.54170907]
[1745681362215,1e-08,1804.9,1804.8,5.54078014]
[1745681362810,0.78540001,1804.9,1804.7,5.54092603]
[1745681363210,0.78540001,1804.9,1804.7,11.08177491]
[1745681363543,0.78540001,1804.9,1804.8,5.54078014]
[1745681364234,1e-08,1804.9,1804.8,5.54078014]
[1745681364433,1e-08,1804.9,1804.8,6.64894304]
[1745681368169,1e-08,1804.9,1804.8,6.70434489]
[1745681368750,1e-08,1804.9,1804.8,6.64894304]
[1745681370656,1e-08,1804.9,1804.8,7.41114304]
[1745681372052,1e-08,1804.9,1804.8,7.46654253]
[1745681372352,1e-08,1804.9,1804.8,7.41114304]
[1745681375044,1e-08,1804.9,1804.8,6.64894304]
[1745681375234,1e-08,1804.9,1804.8,5.54078014]
[1745681384097,1e-08,1804.9,1804.7,5.54091591]
[1745681384892,1e-08,1804.9,1804.5,0.832]
[1745681385096,1e-08,1804.9,1804.6,5.54116614]
[1745681385265,1e-08,1804.9,1804.7,5.54084349]
[1745681385459,1e-08,1804.9,1804.8,5.54078014]
[1745681385791,1e-08,1804.9,1804.7,5.54091952]
[1745681386288,1e-08,1804.9,1804.7,5.54089669]
[1745681387297,1e-08,1804.9,1804.8,5.54078014]
[1745681387503,1e-08,1804.9,1804.7,5.54090597]
[1745681390766,1e-08,1804.9,1804.7,11.08179562]
[1745681391065,1e-08,1804.9,1804.7,5.54088965]
[1745681391495,1e-08,1804.9,1804.7,11.08172968]
[1745681391695,1e-08,1804.9,1804.8,5.54078014]
[1745681394100,1e-08,1804.9,1804.7,5.5408591]
[1745681395206,1e-08,1804.9,1804.7,11.08169942]
[1745681395395,1e-08,1804.9,1804.8,5.54078014]
[1745681398606,1e-08,1804.9,1804.7,5.54090556]
[1745681399901,1e-08,1804.9,1804.6,5.54127523]
[1745681400083,1e-08,1804.9,1804.6,11.08243647]
[1745681400280,0.7861,1804.7,1804.1,0.7544]
[1745681400478,0.67750403,1804.6,1804.3,5.54229188]
[1745681401205,0.67750403,1804.6,1804.4,5.54198302]
[1745681401411,0.78610001,1804.9,1804.6,5.54139421]
[1745681401711,0.78610001,1804.9,1804.7,5.54089295]
[1745681401884,0.78610001,1804.9,1804.7,5.54084052]
[1745681402083,1e-08,1804.9,1804.8,5.54078014]
[1745681402397,1e-08,1804.9,1804.7,5.54107283]
[1745681402994,1e-08,1804.9,1804.8,6.35058553]
[1745681403186,1e-08,1804.9,1804.8,6.29518014]
[1745681403810,1e-08,1804.9,1804.8,6.76308762]
[1745681404178,1e-08,1804.9,1804.8,6.70769635]
[1745681404792,1e-08,1804.9,1804.8,6.76308763]
[1745681405488,1e-08,1804.9,1804.8,7.99350368]
[1745681405688,1e-08,1804.9,1804.8,7.52559619]
[1745681405896,1e-08,1804.9,1804.6,5.54124392]
[1745681406101,0.67750404,1804.9,1804.6,5.54124392]
[1745681406277,1.46360404,1804.9,1804.5,5.54146853]
[1745681406609,1.46360404,1804.9,1804.5,5.54160753]
[1745681406981,0.67750403,1804.7,1804.1,0.7544]
[1745681407183,0.67750403,1804.5,1804.3,5.54217673]
[1745681407508,0.7815,1804.6,1804.4,5.54187979]
[1745681409078,0.7815,1804.6,1804.3,6.09633875]
[1745681409418,6.36472365,1804.4,1804.0,5.54311192]
[1745681409591,0.67750403,1804.3,1803.9,5.54333245]
[1745681409792,0.67750403,1804.3,1803.9,5.54336634]
[1745681409993,0.67750403,1804.3,1803.8,5.54383575]
[1745681409994,0.8225,1804.2,1803.8,5.54383575]
[1745681410319,0.8225,1804.2,1803.8,6.17885933]
[1745681410521,0.8225,1804.2,1803.8,11.72248843]
[1745681410684,0.8225,1804.2,1803.9,5.54350982]
[1745681411085,0.8225,1804.2,1803.8,6.17865696]
[1745681411286,0.8225,1804.2,1804.0,5.543206]
[1745681411812,0.67750403,1804.5,1804.0,5.543206]
[1745681411981,0.8225,1804.4,1804.0,0.8064]
[1745681412176,0.8225,1804.4,1804.1,5.54275539]
[1745681412381,0.8225,1804.4,1804.0,5.54306198]
[1745681412581,6.36451332,1804.4,1803.9,5.54335426]
[1745681412783,0.67750403,1804.3,1803.9,5.54332767]
[1745681413295,0.8225,1804.2,1803.8,5.54365566]
[1745681413496,0.8225,1804.2,1803.9,5.54342342]
[1745681413695,0.8225,1804.2,1803.8,5.54369194]
[1745681414025,6.36514954,1804.2,1803.8,5.54369194]
[1745681414324,0.8225,1804.2,1803.8,5.54369194]
[1745681414624,0.8225,1804.2,1803.8,11.08733188]
[1745681414920,0.8225,1804.2,1803.9,5.54350616]
[1745681415903,0.8225,1804.2,1803.8,5.54365929]
[1745681416719,0.8225,1804.2,1803.8,11.08731496]
[1745681417079,0.8225,1804.2,1803.8,5.54365567]
[1745681417496,0.8225,1804.2,1803.8,5.54385186]
[1745681417710,6.36512739,1804.2,1803.8,5.54385186]
[1745681417919,1.47520403,1804.1,1803.6,5.54416251]
[1745681418119,7.0182746,1804.1,1803.6,11.08838336]
[1745681418330,7.0182746,1804.1,1803.6,5.54416251]
[1745681418536,5.54326273,1804.0,1803.6,5.54416251]
[1745681419100,0.7977,1804.0,1803.5,0.795]
[1745681419826,0.7977,1804.0,1803.6,5.54422282]
[1745681420135,0.7977,1804.0,1803.6,11.08845953]
[1745681420311,0.7977,1804.0,1803.7,5.54398897]
[1745681421050,0.7977,1804.0,1803.7,11.08796135]
[1745681421214,0.7977,1804.0,1803.7,1.10879614]
[1745681421411,0.7977,1804.2,1804.1,5.54292999]
[1745681422325,0.7977,1804.2,1804.0,5.54304686]
[1745681422523,0.7977,1804.2,1804.1,5.54292999]
[1745681423107,0.7977,1804.2,1804.0,5.54304645]
[1745681423307,5.6357,1804.4,1804.1,5.54292999]
[1745681426741,5.6357,1804.4,1804.2,5.54244576]
[1745681427055,5.6357,1804.4,1804.1,5.5427419]
[1745681427959,5.6357,1804.4,1804.1,11.08550647]
[1745681428113,5.6357,1804.4,1804.2,5.5424345]
[1745681428644,14.63091723,1804.8,1804.2,5.5424345]
[1745681428860,0.79770001,1804.9,1804.7,5.54085836]
[1745681429024,0.79770001,1804.9,1804.8,5.54078014]
[1745681429224,0.79770001,1804.9,1804.7,5.54092387]
[1745681430344,0.79770001,1804.9,1804.6,5.54127492]
[1745681430345,1e-08,1804.9,1804.6,5.54127492]
[1745681431150,1e-08,1804.9,1804.7,5.5410653]
[1745681431649,1e-08,1804.9,1804.7,5.54096978]
[1745681432753,0.67750404,1804.9,1804.5,5.54146728]
[1745681432954,6.33869508,1804.8,1804.2,0.795]
[1745681433119,0.7977,1804.6,1804.2,5.54238933]
[1745681433443,6.33911515,1804.6,1804.2,5.54238933]
[1745681434216,6.33911515,1804.6,1804.1,5.54278611]
[1745681434451,6.21934958,1804.5,1804.1,5.54278611]
[1745681434752,0.67750403,1804.5,1804.1,5.54278611]
[1745681434951,0.67750403,1804.5,1804.2,5.54260031]
[1745681435316,0.67750403,1804.5,1804.1,6.73241361]
[1745681435317,0.67750403,1804.5,1804.1,6.73237151]
[1745681436053,0.78,1804.4,1804.1,6.73237151]
[1745681436349,0.78,1804.4,1804.1,5.54274401]
[1745681437873,0.78,1804.4,1804.2,5.5425861]
[1745681438184,0.78,1804.4,1804.1,5.54275643]
[1745681438386,0.78,1804.4,1804.2,5.54254971]
[1745681438682,0.78,1804.4,1804.1,5.54274702]
[1745681439484,0.78,1804.4,1804.1,5.54273581]
[1745681439687,0.78,1804.4,1804.2,5.54260537]
[1745681441001,1.44080403,1804.5,1804.2,5.54247949]
[1745681441201,0.7633,1804.5,1804.3,5.54207345]
[1745681441406,5.6013,1804.7,1804.5,5.54157611]
[1745681442207,5.5013,1804.7,1804.5,5.54157611]
[1745681443100,5.5013,1804.7,1804.4,5.5418456]
[1745681443599,5.5013,1804.7,1804.5,5.5416744]
[1745681443800,5.5013,1804.7,1804.4,5.54181283]
[1745681443998,5.5013,1804.7,1804.4,5.5418007]
[1745681444203,5.5013,1804.7,1804.1,6.34389543]
[1745681444501,5.5013,1804.7,1804.4,11.08361806]
[1745681444707,5.5013,1804.7,1804.2,0.63438954]
[1745681444708,0.67750403,1804.6,1804.3,5.54219768]
[1745681444998,0.7526,1804.5,1804.1,5.54277255]
[1745681445162,0.7526,1804.5,1804.1,11.08545771]
[1745681445362,0.7526,1804.5,1804.1,5.54268516]
[1745681445601,0.7526,1804.5,1804.1,11.08537032]
[1745681446104,0.7526,1804.5,1804.1,5.54268516]
[1745681446308,0.7526,1804.5,1804.1,5.54289623]
[1745681446309,0.7526,1804.3,1804.1,5.54289623]
[1745681447618,6.22015869,1804.2,1803.5,0.784]
[1745681447912,6.22015869,1804.2,1803.8,5.54384184]
[1745681447913,0.7526,1804.1,1803.8,5.54384184]
[1745681448073,0.7526,1804.1,1803.7,5.54397174]
[1745681448405,6.29553467,1804.1,1803.7,6.65279097]
[1745681449010,0.67750403,1804.0,1803.7,1.10881923]
[1745681449321,6.22077219,1804.0,1803.7,1.10881923]
[1745681449627,6.22077219,1804.0,1803.6,5.54428664]
[1745681450708,0.7982,1803.9,1803.6,5.54428664]
[1745681451811,6.34175556,1803.9,1803.5,5.54465658]
[1745681452155,6.34237138,1803.7,1803.3,5.54526484]
[1745681452305,0.7982,1803.7,1803.4,0.05545047]
[1745681452516,0.7982,1803.7,1803.5,5.54464964]
[1745681452720,0.7982,1803.7,1803.5,5.54473407]
[1745681452878,0.7982,1803.7,1803.4,5.54491614]
[1745681453745,0.7982,1803.7,1803.5,5.54475644]
[1745681456914,0.7982,1803.7,1803.4,5.54486417]
[1745681458215,7.0443551,1803.7,1803.3,5.54523118]
[1745681458430,0.67750403,1803.6,1803.3,5.54538066]
[1745681458734,0.764,1803.5,1803.3,5.54538066]
[1745681458942,0.764,1803.5,1803.2,5.54551757]
[1745681459324,0.764,1803.5,1803.3,5.54537833]
[1745681460962,0.764,1803.5,1803.3,11.09053545]
[1745681461105,0.764,1803.5,1803.3,5.54515712]
[1745681462004,0.764,1803.5,1803.3,11.09030497]
[1745681462204,0.764,1803.5,1803.3,5.54514785]
[1745681463241,0.764,1803.5,1803.3,5.54538435]
[1745681463460,0.764,1803.5,1803.3,5.54511067]
[1745681463616,0.764,1803.5,1803.3,5.5450982]
[1745681464053,0.764,1803.5,1803.4,5.54508151]
[1745681464756,0.764,1803.5,1803.3,11.09037301]
[1745681464924,0.764,1803.5,1803.3,5.54516982]
[1745681465355,0.764,1803.5,1803.4,5.54508151]
[1745681465533,0.764,1803.7,1803.4,0.55450815]
[1745681465720,0.764,1803.7,1803.4,5.54496864]
[1745681466361,0.764,1803.7,1803.4,5.54484148]
[1745681466542,0.764,1803.7,1803.5,5.54466479]
[1745681466739,0.764,1803.7,1803.4,5.54489063]
[1745681466921,0.764,1803.7,1803.4,5.54486109]
[1745681468050,0.764,1803.7,1803.3,5.54520708]
[1745681468250,6.30816444,1803.7,1803.3,11.09036056]
[1745681468449,6.30816444,1803.7,1803.3,5.54515348]
[1745681468653,0.764,1803.7,1803.3,5.54515348]
[1745681468951,0.764,1803.7,1803.4,5.54494554]
[1745681469156,0.8254,1803.8,1803.4,0.55449455]
[1745681469464,5.6614,1803.9,1803.7,5.54415922]
[1745681469960,5.6614,1803.9,1803.6,5.54427264]
[1745681471557,4.836,1803.9,1803.7,5.54392301]
[1745681471943,4.836,1803.9,1803.8,5.54385186]
[1745681472163,12.31025539,1804.2,1803.9,5.54354454]
[1745681472164,0.8254,1804.2,1803.9,5.54354454]
[1745681472336,0.8254,1804.4,1804.2,5.54242909]
[1745681472654,0.8254,1804.4,1804.1,5.54270748]
[1745681473216,1.50290403,1804.4,1804.1,11.08543994]
[1745681473416,1.50290403,1804.4,1804.1,5.54270748]
[1745681473953,7.04505766,1804.4,1803.9,5.54354454]
[1745681474164,7.04505766,1804.4,1803.6,10.38241319]
[1745681474165,0.7828,1804.1,1803.7,5.54392392]
[1745681474361,0.7828,1804.1,1803.7,11.08789577]
[1745681474567,0.7828,1804.1,1803.8,5.54379206]
[1745681474732,0.7828,1804.1,1804.0,5.54323725]
[1745681474939,0.7828,1804.1,1803.8,5.54362102]
[1745681476362,0.7828,1804.1,1803.9,5.54341559]
[1745681476867,0.7828,1804.1,1803.9,5.54337986]
[1745681477660,0.7828,1804.1,1803.9,5.54337072]
[1745681478537,0.7828,1804.1,1803.6,6.33734248]
[1745681478762,0.7828,1804.1,1803.9,5.54335464]
[1745681481767,0.7828,1804.1,1804.0,5.54323725]
[1745681481974,0.7759,1804.3,1804.0,5.54323725]
[1745681483288,0.7759,1804.3,1803.9,5.54337176]
[1745681483883,6.31826381,1804.3,1803.9,5.54337176]
[1745681484088,0.7759,1804.3,1804.0,5.5432032]
[1745681484694,0.7759,1804.3,1803.8,0.8268]
[1745681485081,0.7759,1804.3,1804.0,5.5430891]
[1745681485479,0.7759,1804.3,1803.8,0.8268]
[1745681485796,0.8144,1804.1,1803.7,5.54403066]
[1745681485998,0.8144,1804.1,1803.8,5.54376083]
[1745681486205,0.8144,1804.1,1803.8,5.54367865]
[1745681486698,0.8144,1804.1,1803.5,6.37153326]
[1745681486903,0.8144,1804.3,1804.0,5.54323725]
[1745681487078,1.66861759,1804.3,1804.0,5.54323725]
[1745681487271,0.8144,1804.3,1804.0,5.54323725]
[1745681487469,0.8144,1804.3,1803.9,5.54338587]
[1745681487798,6.35690103,1804.3,1803.9,5.54338587]
[1745681488599,6.33445372,1804.1,1803.6,5.54446338]
[1745681488805,0.7914,1803.9,1803.6,5.54446338]
[1745681488966,0.7914,1803.9,1803.6,1.18827656]
[1745681489300,6.33498051,1803.9,1803.5,5.54455951]
[1745681489898,0.7914,1803.9,1803.6,5.54427749]
[1745681490200,0.7914,1803.9,1803.6,5.54421967]
[1745681491399,0.7914,1803.9,1803.5,5.54461794]
[1745681491400,6.33501445,1803.9,1803.5,5.5446197]
[1745681492705,0.7914,1803.9,1803.5,5.54455706]
[1745681492905,0.7914,1803.9,1803.6,5.5442728]
[1745681493110,0.7914,1803.9,1803.7,5.54404528]
[1745681495723,0.7914,1803.9,1803.6,5.5442728]
[1745681496525,6.3349657,1803.9,1803.5,6.23383203]
[1745681496725,6.3349657,1803.9,1803.5,11.08911899]
[1745681496892,0.7914,1803.9,1803.5,11.08911899]
[1745681497258,0.7914,1803.9,1803.5,5.54455212]
[1745681497528,0.7914,1803.9,1803.5,5.54454602]
[1745681497823,0.7914,1803.9,1803.6,5.54445941]
[1745681501437,6.33497383,1803.9,1803.5,5.54463379]
[1745681501595,0.7914,1803.9,1803.5,11.08917376]
[1745681501800,6.33499551,1803.9,1803.5,6.73282825]
[1745681502020,0.7914,1803.9,1803.5,6.73281623]
[1745681502329,0.7914,1803.9,1803.6,5.54442807]
[1745681502507,0.7914,1803.9,1803.7,5.54403177]
[1745681503803,0.7914,1803.9,1803.6,5.54427483]
[1745681504833,6.33500314,1803.9,1803.5,6.73285775]
[1745681505030,0.7914,1803.9,1803.2,0.7913]
[1745681505230,0.8303,1803.6,1803.2,5.54551389]
[1745681505399,0.8303,1803.6,1803.3,5.5451666]
[1745681505601,0.8303,1803.6,1803.4,5.54489511]
[1745681507399,1.50780403,1803.8,1803.4,5.54489511]
[1745681507733,1.50780403,1803.8,1803.5,5.54466077]
[1745681508650,0.8303,1803.8,1803.5,5.54466077]
[1745681509449,6.91353743,1803.8,1803.3,5.54525295]
[1745681509745,0.8303,1803.7,1803.3,5.54516433]
[1745681509910,0.8303,1803.7,1803.4,5.54502654]
[1745681510105,0.8303,1803.7,1803.4,5.54488156]
[1745681510940,0.8303,1803.7,1803.4,5.54484663]
[1745681511127,0.8303,1803.7,1803.3,5.5451755]
[1745681511537,6.37447805,1803.7,1803.3,5.5451755]
[1745681511725,6.37447805,1803.7,1803.2,5.54555097]
[1745681511924,6.37447805,1803.7,1803.2,11.64556034]
[1745681512125,0.8303,1803.6,1803.2,6.10000937]
[1745681512872,0.8303,1803.6,1803.3,5.54538506]
[1745681513747,0.8303,1803.6,1803.2,6.1000738]
[1745681514313,0.8303,1803.6,1803.2,11.645559]
[1745681514745,0.8303,1803.6,1803.2,6.1000403]
[1745681515759,0.8303,1803.6,1803.2,11.64548932]
[1745681517556,0.8303,1803.6,1803.2,6.10000412]
[1745681517918,6.37489106,1803.6,1803.2,6.10000412]
[1745681518118,0.8303,1803.6,1803.2,11.6454656]
[1745681518325,7.05229616,1803.6,1803.2,6.10000412]
[1745681518520,5.54435772,1803.7,1802.9,5.5463798]
[1745681518521,1.45640403,1803.4,1802.9,5.5463798]
[1745681518851,5.54541435,1803.3,1802.9,5.5463798]
[1745681519017,0.7789,1803.2,1802.9,5.5463798]
[1745681519221,0.7789,1803.2,1802.9,6.73404613]
[1745681519428,7.0021473,1803.2,1802.9,1.18766633]
[1745681519634,7.0021473,1803.2,1802.8,5.54676375]
[1745681521247,5.54615821,1803.1,1802.7,5.547162]
[1745681521659,0.7789,1803.0,1802.7,5.547162]
[1745681521819,1.45640403,1803.0,1802.5,5.54769796]
[1745681522024,1.45640403,1803.0,1802.5,6.18080776]
[1745681522225,7.00282984,1803.0,1802.6,5.54738281]
[1745681522434,11.83682984,1803.0,1802.6,5.54738281]
[1745681522931,6.29040403,1803.0,1802.5,0.6331098]
[1745681523123,5.6129,1803.0,1802.8,5.54675004]
[1745681523325,4.834,1803.0,1802.9,5.54661933]
[1745681523519,0.7641,1803.2,1803.0,5.54617264]
[1745681525762,0.7641,1803.2,1802.8,6.10144447]
[1745681525923,0.7641,1803.2,1802.9,5.54657262]
[1745681526324,6.30993038,1803.2,1802.8,6.10144539]
[1745681526625,6.98743441,1803.2,1802.8,6.10144539]
[1745681526823,6.98743441,1803.2,1802.7,5.54722112]
[1745681526824,6.22333441,1803.2,1802.7,5.54722112]
[1745681527046,0.7641,1803.1,1802.7,5.54722112]
[1745681527657,6.31021527,1803.1,1802.7,5.54722112]
[1745681528157,6.31021527,1803.1,1802.6,5.54739117]
[1745681528655,6.31021527,1803.1,1802.7,5.54721995]
[1745681529160,0.7641,1803.1,1802.5,6.95800632]
[1745681529451,0.7641,1803.1,1802.9,5.54643934]
[1745681529624,0.7641,1803.1,1802.9,5.54640222]
[1745681530247,0.7641,1803.1,1803.0,5.5463117]
[1745681530557,0.7641,1803.1,1802.9,5.54646901]
[1745681530956,0.7641,1803.1,1803.0,5.5463117]
[1745681531181,5.588,1803.3,1803.1,5.54597793]
[1745681531348,4.834,1803.3,1803.1,5.5457803]
[1745681531544,4.834,1803.3,1803.2,5.54569653]
[1745681533758,0.754,1803.5,1803.2,5.54569653]
[1745681533958,0.754,1803.5,1803.2,5.54551032]
[1745681534159,0.754,1803.5,1803.4,5.54508151]
[1745681534374,4.835,1803.6,1803.4,5.54508151]
[1745681534547,4.835,1803.6,1803.3,5.54522228]
[1745681536288,4.835,1803.6,1803.3,5.54518239]
[1745681536476,0.7988,1803.7,1803.5,5.54457361]
[1745681536868,0.8017,1803.8,1803.5,5.54457361]
[1745681537504,0.8017,1803.8,1803.6,5.54442523]
[1745681539394,0.8017,1803.8,1803.5,5.54463129]
[1745681540751,4.835,1803.9,1803.6,5.54428241]
[1745681540976,4.835,1803.9,1803.7,5.54402945]
[1745681542291,4.835,1803.9,1803.5,5.54461923]
[1745681542292,4.835,1803.9,1803.6,5.54427574]
[1745681544193,4.835,1803.9,1803.7,5.5439463]
[1745681544390,4.835,1803.9,1803.8,5.54385186]
[1745681545094,4.835,1803.9,1803.7,5.54396373]
[1745681545267,4.835,1803.9,1803.6,11.08858725]
[1745681545671,4.835,1803.9,1803.7,5.54402042]
[1745681546895,4.835,1803.9,1803.7,11.08798715]
[1745681547062,4.835,1803.9,1803.8,5.54385186]
[1745681547267,4.835,1803.9,1803.6,6.65314157]
[1745681547594,4.835,1803.9,1803.7,5.54405013]
[1745681547892,4.835,1803.9,1803.7,5.54398455]
[1745681548090,4.835,1803.9,1803.8,5.54385186]
[1745681548263,4.835,1803.9,1803.7,5.54399248]
[1745681548797,4.835,1803.9,1803.8,5.54385186]
[1745681549001,1.48970403,1804.2,1804.0,5.54323725]
[1745681549169,5.95198505,1804.4,1803.8,1.19160443]
[1745681549170,1.48970403,1804.4,1803.8,6.79088501]
[1745681549380,7.03175127,1804.4,1804.0,5.54323725]
[1745681549699,7.03191286,1804.4,1803.9,0.8282]
[1745681549858,7.03191286,1804.4,1804.0,5.54319118]
[1745681550490,1.48970403,1804.4,1804.2,5.54253905]
[1745681550675,1.48970403,1804.4,1804.0,5.54308747]
[1745681550875,7.03173006,1804.4,1804.0,5.54308747]
[1745681551984,0.8122,1804.1,1803.8,5.54369516]
[1745681552303,0.67750403,1804.0,1803.6,5.54429617]
[1745681552476,6.22087389,1804.0,1803.6,5.54429617]
[1745681553120,0.67750403,1804.0,1803.5,0.8282]
[1745681553408,0.67750403,1804.0,1803.7,5.54390054]
[1745681554678,0.67750403,1804.0,1803.6,5.54429783]
[1745681554873,0.67750403,1804.0,1803.6,6.7360127]
[1745681555070,6.22077075,1804.0,1803.6,6.7360127]
[1745681555609,1.48970403,1803.8,1803.4,5.54496789]
[1745681555906,1.48970403,1803.8,1803.4,11.08982524]
[1745681556307,1.48970403,1803.8,1803.3,0.8282]
[1745681556498,1.48970403,1803.8,1803.5,5.54453839]
[1745681556702,1.48970403,1803.8,1803.5,6.09899223]
[1745681556880,1.48970403,1803.8,1803.6,5.5443894]
[1745681557216,1.48970403,1803.8,1803.5,6.09904017]
[1745681557706,1.48970403,1803.8,1803.5,0.55445384]
[1745681557907,7.03367771,1803.8,1803.4,5.54483685]
[1745681558412,0.8122,1803.8,1803.5,5.54476196]
[1745681558613,6.35618451,1803.8,1803.4,5.5449266]
[1745681559474,5.54420886,1803.7,1803.3,6.37346179]
[1745681559681,5.54420886,1803.7,1803.3,7.56535486]
[1745681560178,5.54420886,1803.7,1803.3,6.73715486]
[1745681560373,5.54448149,1803.6,1803.3,1.19189307]
[1745681560622,6.22275875,1803.4,1803.0,5.54624383]
[1745681562403,0.67750403,1803.4,1803.0,5.54624383]
[1745681562604,0.67750403,1803.4,1803.0,5.54608061]
[1745681563288,0.67750403,1803.4,1803.0,11.09219872]
[1745681563619,0.67750403,1803.4,1803.1,6.35034953]
[1745681563806,0.7702,1803.5,1803.1,6.35012126]
[1745681563999,0.7702,1803.5,1803.2,5.54566081]
[1745681564508,11.6902,1803.7,1803.2,5.54566081]
[1745681564714,17.23451434,1803.7,1803.3,5.54525629]
[1745681564926,17.23451434,1803.7,1803.3,6.65433254]
[1745681564927,11.6902,1803.7,1803.3,6.65433254]
[1745681565087,11.6902,1803.7,1803.3,5.54525629]
[1745681565290,10.92,1803.7,1803.4,5.54496898]
[1745681565535,6.09,1803.7,1803.5,5.54459961]
[1745681566623,5.54354684,1803.9,1803.5,5.54459961]
[1745681568234,6.72577193,1803.9,1803.5,5.54459961]
[1745681569612,5.54354684,1803.9,1803.5,5.54459961]
[1745681569813,5.54354684,1803.9,1803.4,5.54508151]
[1745681569814,6.27870403,1804.0,1803.4,0.05544188]
[1745681570052,6.27870403,1804.0,1803.6,5.54425987]
[1745681570257,11.82205378,1804.0,1803.6,5.54425987]
[1745681573330,11.82205378,1804.0,1803.5,11.08911587]
[1745681573720,11.82205378,1804.0,1803.6,5.54445824]
[1745681576965,5.54355608,1803.9,1803.5,5.54453635]
[1745681577442,11.82211317,1804.0,1803.5,11.08907072]
[1745681577645,6.09,1804.2,1803.6,6.36228217]
[1745681577859,6.09,1804.2,1803.9,5.54342664]
[1745681578165,5.54267792,1804.2,1803.8,5.54385186]
[1745681578328,13.06102766,1804.3,1803.8,11.08751989]
[1745681578525,13.06102766,1804.3,1803.9,5.54351288]
[1745681580973,5.54393587,1803.8,1803.4,0.7959]
[1745681581172,0.7883,1803.7,1803.3,5.54524171]
[1745681581478,0.67750403,1803.4,1803.1,0.80434724]
[1745681581684,7.01103062,1803.4,1802.9,0.7959]
[1745681581837,11.83903062,1803.4,1802.9,6.34237757]
[1745681582041,11.83903062,1803.4,1803.0,5.54630581]
[1745681582229,6.29380403,1803.4,1803.0,5.54630581]
[1745681582734,6.29380403,1803.4,1803.1,5.5459902]
[1745681582935,6.29380403,1803.4,1803.1,6.6552198]
[1745681583432,4.828,1803.4,1803.3,5.545389]
[1745681584183,10.918,1803.7,1803.4,5.544826]
[1745681584476,10.918,1803.7,1803.4,11.089652]
[1745681585045,10.918,1803.7,1803.4,5.544826]
[1745681587178,4.828,1803.7,1803.4,5.544826]
[1745681587880,4.828,1803.7,1803.5,5.54475363]
[1745681588884,4.828,1803.7,1803.4,6.65398529]
[1745681589389,4.828,1803.7,1803.3,5.54526321]
[1745681589679,4.828,1803.7,1803.4,5.54491272]
[1745681589887,4.828,1803.7,1803.4,5.54482821]
[1745681591389,4.828,1803.7,1803.4,11.08968862]
[1745681591566,4.828,1803.7,1803.5,5.54474602]
[1745681591772,4.828,1803.7,1803.6,5.54446662]
[1745681594502,4.828,1803.7,1803.6,6.65339066]
[1745681594963,4.828,1803.7,1803.6,1.10892404]
[1745681595169,4.828,1803.7,1803.5,5.54457676]
[1745681595922,4.828,1803.7,1803.2,6.31695822]
[1745681595923,10.3723907,1803.7,1803.2,6.31695822]
[1745681596199,1.49130403,1803.6,1803.3,5.54537348]
[1745681596498,4.828,1803.7,1803.5,5.54452169]
[1745681596866,4.828,1803.7,1803.6,5.54446662]
[1745681597070,0.67750403,1803.9,1803.7,5.54412618]
[1745681597269,4.828,1803.9,1803.7,5.54412618]
[1745681597469,6.09,1804.1,1803.9,5.54343232]
[1745681597778,11.7318,1804.2,1803.9,5.54343232]
[1745681598708,11.7318,1804.2,1803.9,11.0867565]
[1745681598883,11.7318,1804.2,1803.9,5.54332418]
[1745681599081,11.7318,1804.2,1803.7,7.42442313]
[1745681599394,10.918,1804.2,1804.0,5.54302177]
[1745681600291,10.918,1804.2,1803.9,5.54325885]
[1745681600471,10.918,1804.2,1804.0,5.54311717]
[1745681601404,10.918,1804.2,1803.9,5.54338561]
[1745681601576,10.918,1804.2,1803.9,5.54330958]
[1745681601778,4.828,1804.2,1803.9,5.54330958]
[1745681604314,4.828,1804.2,1804.0,5.54320733]
[1745681606222,4.828,1804.2,1804.0,5.54301374]
[1745681606421,4.828,1804.2,1804.1,5.54292999]
[1745681606827,4.828,1804.2,1804.0,5.54304518]
[1745681607490,4.828,1804.2,1804.0,11.08604706]
[1745681607731,4.828,1804.2,1804.1,5.54292999]
[1745681610827,6.8998,1804.4,1804.2,5.54260201]
[1745681611719,6.8998,1804.4,1804.1,5.54277633]
[1745681613433,6.8998,1804.4,1804.1,5.54275888]
[1745681613939,6.09,1804.4,1804.2,5.54251232]
[1745681616220,6.09,1804.4,1804.1,5.54287824]
[1745681616407,17.13334487,1804.5,1804.1,5.54287824]
[1745681616604,5.54215663,1804.4,1804.0,7.5283027]
[1745681616822,11.59150403,1804.5,1804.0,13.0713526]
[1745681617005,6.21983482,1804.3,1803.8,0.7662]
[1745681617205,0.67750403,1804.1,1803.8,5.54368056]
[1745681617562,0.67750403,1804.1,1803.8,5.5436362]
[1745681617735,0.67750403,1804.1,1803.9,5.54347596]
[1745681618065,6.09,1804.2,1803.9,5.54347596]